fUSD/lending_fUSD_20240913
["ID","MTS","AMOUNT","RATE_DAILY","PERIOD"]
[338047110,1726253431793,-265.39605074,0.00012774,2]
[338047111,1726253431831,-6022.23705583,0.00012774,2]
[338047112,1726253431841,-155.19,0.00012874,2]
[338047113,1726253431850,-150.0,0.00012877,2]
[338047114,1726253431860,-2000.0,0.00012878,2]
[338047115,1726253431871,-300.0,0.00012879,2]
[338047116,1726253431881,-23890.0,0.0001288,2]
[338047117,1726253431891,-150.43,0.00012894,2]
[338047118,1726253431900,-150.43,0.00012899,2]
[338047119,1726253431909,-150.43,0.00012903,2]
[338047120,1726253431918,-299.99,0.00012903,2]
[338047121,1726253431928,-150.99,0.00012903,2]
[338047122,1726253431937,-499.99,0.00012903,2]
[338047123,1726253431947,-196.06,0.00012905,2]
[338047124,1726253431956,-150.43,0.00012908,2]
[338047125,1726253431965,-150.43,0.00012912,2]
[338047126,1726253431975,-1000.0,0.00012914,2]
[338047127,1726253431984,-150.43,0.00012917,2]
[338047128,1726253431993,-150.43,0.00012922,2]
[338047129,1726253432002,-150.43,0.00012926,2]
[338047130,1726253432012,-150.43,0.00012931,2]
[338047131,1726253432021,-150.43,0.00012935,2]
[338047132,1726253432030,-250.0,0.00012936,2]
[338047133,1726253432039,-150.43,0.0001294,2]
[338047134,1726253432048,-150.43,0.00012945,2]
[338047135,1726253432057,-150.43,0.00012949,2]
[338047136,1726253432067,-150.43,0.00012954,2]
[338047137,1726253432076,-150.0,0.00012954,2]
[338047138,1726253432086,-150.43,0.00012958,2]
[338047139,1726253432095,-308.724758,0.00012962,2]
[338047140,1726253432104,-152.714661,0.00012962,2]
[338047141,1726253432113,-308.724758,0.00012962,2]
[338047142,1726253432125,-193.12,0.00012977,2]
[338047143,1726253432136,-396.28,0.00013,2]
[338047144,1726253432146,-1100.0,0.00013,2]
[338047145,1726253432155,-168.54,0.0001301,2]
[338047146,1726253432165,-398.845,0.00013085,2]
[338047147,1726253432175,-412.56,0.00013186,2]
[338047148,1726253432185,-167.0,0.00013268,2]
[338047149,1726253432195,-6615.41816284,0.00013468,2]
[338047150,1726253432204,-1261.0,0.00013478,2]
[338047151,1726253432213,-624.0,0.00013478,2]
[338047152,1726253432223,-448.0,0.00013478,2]
[338047153,1726253432233,-1547.0,0.00013478,2]
[338047154,1726253432242,-810.0,0.00013478,2]
[338047155,1726253432251,-932.0,0.00013478,2]
[338047156,1726253432261,-558.0,0.00013478,2]
[338047157,1726253432270,-150.0,0.00013478,2]
[338047158,1726253432279,-553.0,0.00013478,2]
[338047159,1726253432289,-1901.0,0.00013478,2]
[338047160,1726253432298,-248.0,0.00013478,2]
[338047161,1726253432307,-3344.0,0.00013478,2]
[338047162,1726253432316,-1920.0,0.00013478,2]
[338047163,1726253432325,-1125.0,0.00013478,2]
[338047164,1726253432335,-806.0,0.00013478,2]
[338047165,1726253432344,-150.0,0.00013478,2]
[338047166,1726253432354,-1146.0,0.00013478,2]
[338047167,1726253432363,-150.0,0.00013478,2]
[338047168,1726253432375,-5862.0,0.00013478,2]
[338047169,1726253432384,-9312.0,0.00013478,2]
[338047170,1726253432393,-188.99378241,0.00013488,2]
[338047171,1726253432404,-168.61174611,0.00013488,2]
[338047172,1726253432414,-150.0,0.00013488,2]
[338047173,1726253432423,-223.74368413,0.00013488,2]
[338047174,1726253432432,-150.8509707,0.00013488,2]
[338047175,1726253432441,-150.25834519,0.00013488,2]
[338047176,1726253432451,-150.0,0.00013488,2]
[338047177,1726253432460,-150.0,0.00013488,2]
[338047178,1726253432469,-150.0,0.00013488,2]
[338047179,1726253432478,-150.0,0.00013488,2]
[338047180,1726253432487,-150.18189436,0.00013488,2]
[338047181,1726253432496,-150.0,0.00013488,2]
[338047182,1726253432506,-150.18981494,0.00013488,2]
[338047183,1726253432516,-150.0,0.00013488,2]
[338047184,1726253432525,-200.43,0.000135,2]
[338047185,1726253432534,-188.99378241,0.00013503,2]
[338047186,1726253432543,-168.61174611,0.00013503,2]
[338047187,1726253432552,-223.74368413,0.00013503,2]
[338047188,1726253432562,-188.99378241,0.00013518,2]
[338047189,1726253432571,-168.61174611,0.00013518,2]
[338047190,1726253432580,-223.74368413,0.00013518,2]
[338047191,1726253432589,-200.38330947,0.0001352,2]
[338047192,1726253432599,-150.0,0.00013528,2]
[338047193,1726253432608,-188.99378241,0.00013533,2]
[338047194,1726253432618,-168.61174611,0.00013533,2]
[338047195,1726253432635,-223.74368413,0.00013533,2]
[338047196,1726253432645,-188.99378241,0.00013548,2]
[338047197,1726253432654,-168.61174611,0.00013548,2]
[338047198,1726253432663,-223.74368413,0.00013548,2]
[338047199,1726253432672,-188.99378241,0.00013563,2]
[338047200,1726253432681,-168.61174611,0.00013563,2]
[338047201,1726253432690,-223.74368413,0.00013563,2]
[338047202,1726253432699,-150.0,0.00013569,2]
[338047203,1726253432709,-188.99378241,0.00013578,2]
[338047204,1726253432718,-168.61174611,0.00013578,2]
[338047205,1726253432727,-223.74368413,0.00013578,2]
[338047206,1726253432737,-188.99378241,0.00013594,2]
[338047207,1726253432746,-168.61174611,0.00013594,2]
[338047208,1726253432760,-223.74368413,0.00013594,2]
[338047209,1726253432770,-188.99378241,0.00013609,2]
[338047210,1726253432779,-168.61174611,0.00013609,2]
[338047211,1726253432788,-223.74368413,0.00013609,2]
[338047212,1726253432798,-150.0,0.00013609,2]
[338047213,1726253432808,-188.99378241,0.00013624,2]
[338047214,1726253432817,-168.61174611,0.00013624,2]
[338047215,1726253432828,-223.74368413,0.00013624,2]
[338047216,1726253432837,-150.0,0.00013638,2]
[338047217,1726253432847,-188.99378241,0.00013639,2]
[338047218,1726253432856,-168.61174611,0.00013639,2]
[338047219,1726253432865,-223.74368413,0.00013639,2]
[338047220,1726253432878,-150.0,0.0001365,2]
[338047221,1726253432887,-188.99378241,0.00013654,2]
[338047222,1726253432896,-168.61174611,0.00013654,2]
[338047223,1726253432906,-223.74368413,0.00013654,2]
[338047224,1726253432914,-188.99378241,0.00013669,2]
[338047225,1726253432924,-168.61174611,0.00013669,2]
[338047226,1726253432934,-223.74368413,0.00013669,2]
[338047227,1726253432943,-188.99378241,0.00013684,2]
[338047228,1726253432952,-168.61174611,0.00013684,2]
[338047229,1726253432962,-223.74368413,0.00013684,2]
[338047230,1726253432971,-150.0,0.0001369,2]
[338047231,1726253432980,-150.0,0.00013699,2]
[338047232,1726253432989,-355.07,0.00013699,2]
[338047233,1726253432999,-200.0,0.00013699,2]
[338047234,1726253433008,-219.41,0.00013699,2]
[338047235,1726253433017,-2751.0,0.00013699,2]
[338047236,1726253433027,-188.99378241,0.000137,2]
[338047237,1726253433037,-168.61174611,0.000137,2]
[338047238,1726253433046,-223.74368413,0.000137,2]
[338047239,1726253433056,-1000.0,0.000137,2]
[338047240,1726253433065,-565.0,0.000137,2]
[338047241,1726253433074,-718.0,0.000137,2]
[338047242,1726253433084,-167.0,0.00013706,2]
[338047243,1726253433093,-188.99378241,0.00013715,2]
[338047244,1726253433102,-168.61174611,0.00013715,2]
[338047245,1726253433111,-223.74368413,0.00013715,2]
[338047246,1726253433123,-188.99378241,0.0001373,2]
[338047247,1726253433134,-168.61174611,0.0001373,2]
[338047248,1726253433143,-223.74368413,0.0001373,2]
[338047249,1726253433153,-150.0,0.00013731,2]
[338047250,1726253433162,-150.0,0.00013737,2]
[338047251,1726253433172,-188.99378241,0.00013745,2]
[338047252,1726253433182,-168.61174611,0.00013745,2]
[338047253,1726253433192,-223.74368413,0.00013745,2]
[338047254,1726253433201,-188.99378241,0.0001376,2]
[338047255,1726253433211,-168.61174611,0.0001376,2]
[338047256,1726253433221,-223.74368413,0.0001376,2]
[338047257,1726253433230,-150.0,0.00013771,2]
[338047258,1726253433239,-398.845,0.00013772,2]
[338047259,1726253433248,-188.99378241,0.00013775,2]
[338047260,1726253433258,-168.61174611,0.00013775,2]
[338047261,1726253433267,-223.74368413,0.00013775,2]
[338047262,1726253433276,-150.0,0.00013787,2]
[338047263,1726253433285,-188.99378241,0.0001379,2]
[338047264,1726253433295,-168.61174611,0.0001379,2]
[338047265,1726253433304,-223.74368413,0.0001379,2]
[338047266,1726253433313,-188.99378241,0.00013806,2]
[338047267,1726253433322,-223.74368413,0.00013806,2]
[338047268,1726253433332,-150.0,0.00013812,2]
[338047269,1726253433341,-188.99378241,0.00013821,2]
[338047270,1726253433350,-223.74368413,0.00013821,2]
[338047271,1726253433360,-188.99378241,0.00013836,2]
[338047272,1726253433371,-223.74368413,0.00013836,2]
[338047273,1726253433380,-188.99378241,0.00013851,2]
[338047274,1726253433390,-223.74368413,0.00013851,2]
[338047275,1726253433399,-150.0,0.00013852,2]
[338047276,1726253433408,-150.0,0.00013862,2]
[338047277,1726253433418,-500.0,0.00013864,2]
[338047278,1726253433427,-320.67900359,0.00013864,2]
[338047279,1726253433436,-500.0,0.00013864,2]
[338047280,1726253433445,-188.99378241,0.00013866,2]
[338047281,1726253433455,-223.74368413,0.00013866,2]
[338047282,1726253433464,-188.99378241,0.00013881,2]
[338047283,1726253433473,-223.74368413,0.00013881,2]
[338047284,1726253433483,-150.0,0.00013893,2]
[338047285,1726253433492,-188.99378241,0.00013896,2]
[338047286,1726253433501,-223.74368413,0.00013896,2]
[338047287,1726253433510,-790.867,0.00013899,2]
[338047288,1726253433520,-201.689,0.00013899,2]
[338047289,1726253433531,-500.0,0.00013904,2]
[338047290,1726253433540,-500.0,0.00013904,2]
[338047291,1726253433549,-188.99378241,0.00013912,2]
[338047292,1726253433558,-223.74368413,0.00013912,2]
[338047293,1726253433567,-188.99378241,0.00013927,2]
[338047294,1726253433576,-223.74368413,0.00013927,2]
[338047295,1726253433585,-150.0,0.00013933,2]
[338047296,1726253433595,-150.0,0.00013937,2]
[338047297,1726253433604,-188.99378241,0.00013942,2]
[338047298,1726253433614,-223.74368413,0.00013942,2]
[338047299,1726253433624,-188.99378241,0.00013957,2]
[338047300,1726253433634,-223.74368413,0.00013957,2]
[338047301,1726253433643,-188.99378241,0.00013972,2]
[338047302,1726253433653,-223.74368413,0.00013972,2]
[338047303,1726253433662,-150.0,0.00013974,2]
[338047304,1726253433671,-188.99378241,0.00013987,2]
[338047305,1726253433680,-150.0,0.00013987,2]
[338047306,1726253433689,-223.74368413,0.00013987,2]
[338047307,1726253433699,-150.0,0.00013987,2]
[338047308,1726253433708,-150.0,0.00013987,2]
[338047309,1726253433717,-150.0,0.00013987,2]
[338047310,1726253433726,-150.0,0.00014,2]
[338047311,1726253433737,-188.99378241,0.00014002,2]
[338047312,1726253433747,-223.74368413,0.00014002,2]
[338047313,1726253433759,-150.0,0.00014014,2]
[338047314,1726253433768,-188.99378241,0.00014017,2]
[338047315,1726253433777,-223.74368413,0.00014017,2]
[338047316,1726253433787,-188.99378241,0.00014033,2]
[338047317,1726253433797,-223.74368413,0.00014033,2]
[338047318,1726253433806,-188.99378241,0.00014048,2]
[338047319,1726253433815,-223.74368413,0.00014048,2]
[338047320,1726253433825,-150.0,0.00014055,2]
[338047321,1726253433835,-255.0,0.00014055,2]
[338047322,1726253433844,-150.0,0.00014059,2]
[338047323,1726253433854,-188.99378241,0.00014063,2]
[338047324,1726253433863,-223.74368413,0.00014063,2]
[338047325,1726253433873,-188.99378241,0.00014078,2]
[338047326,1726253433883,-223.74368413,0.00014078,2]
[338047327,1726253433892,-150.0,0.00014087,2]
[338047328,1726253433901,-188.99378241,0.00014093,2]
[338047329,1726253433910,-223.74368413,0.00014093,2]
[338047330,1726253433919,-150.0,0.00014095,2]
[338047331,1726253433929,-188.99378241,0.00014108,2]
[338047332,1726253433938,-223.74368413,0.00014108,2]
[338047333,1726253433947,-188.99378241,0.00014123,2]
[338047334,1726253433956,-223.74368413,0.00014123,2]
[338047335,1726253433965,-420.0,0.00014126,2]
[338047336,1726253433975,-150.0,0.00014136,2]
[338047337,1726253433984,-188.99378241,0.00014139,2]
[338047338,1726253433993,-223.74368413,0.00014139,2]
[338047339,1726253434003,-167.0,0.00014144,2]
[338047340,1726253434012,-188.99378241,0.00014154,2]
[338047341,1726253434021,-223.74368413,0.00014154,2]
[338047342,1726253434030,-188.99378241,0.00014169,2]
[338047343,1726253434039,-223.74368413,0.00014169,2]
[338047344,1726253434048,-150.0,0.00014176,2]
[338047345,1726253434057,-188.99378241,0.00014184,2]
[338047346,1726253434066,-223.74368413,0.00014184,2]
[338047347,1726253434075,-188.99378241,0.00014199,2]
[338047348,1726253434085,-223.74368413,0.00014199,2]
[338047349,1726253434094,-188.99378241,0.00014214,2]
[338047350,1726253434103,-223.74368413,0.00014214,2]
[338047351,1726253434112,-150.0,0.00014217,2]
[338047352,1726253434123,-500.0,0.00014225,2]
[338047353,1726253434132,-188.99378241,0.00014229,2]
[338047354,1726253434141,-223.74368413,0.00014229,2]
[338047355,1726253434149,-500.0,0.00014233,2]
[338047356,1726253434158,-150.0,0.00014237,2]
[338047357,1726253434168,-150.0,0.00014237,2]
[338047358,1726253434177,-150.0,0.00014237,2]
[338047359,1726253434187,-500.0,0.00014242,2]
[338047360,1726253434196,-188.99378241,0.00014245,2]
[338047361,1726253434205,-223.74368413,0.00014245,2]
[338047362,1726253434215,-388.716215,0.00014247,2]
[338047363,1726253434224,-174.6,0.00014247,2]
[338047364,1726253434236,-500.0,0.00014251,2]
[338047365,1726253434246,-150.0,0.00014257,2]
[338047366,1726253434256,-188.99378241,0.0001426,2]
[338047367,1726253434267,-223.74368413,0.0001426,2]
[338047368,1726253434277,-500.0,0.0001426,2]
[338047369,1726253434287,-500.0,0.00014269,2]
[338047370,1726253434298,-188.99378241,0.00014275,2]
[338047371,1726253434308,-223.74368413,0.00014275,2]
[338047372,1726253434318,-500.0,0.00014277,2]
[338047373,1726253434328,-500.0,0.00014286,2]
[338047374,1726253434338,-188.99378241,0.0001429,2]
[338047375,1726253434347,-223.74368413,0.0001429,2]
[338047376,1726253434357,-500.0,0.00014295,2]
[338047377,1726253434366,-150.0,0.00014298,2]
[338047378,1726253434377,-500.0,0.00014304,2]
[338047379,1726253434387,-188.99378241,0.00014305,2]
[338047380,1726253434396,-223.74368413,0.00014305,2]
[338047381,1726253434406,-500.0,0.00014313,2]
[338047382,1726253434416,-188.99378241,0.0001432,2]
[338047383,1726253434427,-223.74368413,0.0001432,2]
[338047384,1726253434437,-500.0,0.00014321,2]
[338047385,1726253434448,-500.0,0.0001433,2]
[338047386,1726253434457,-188.99378241,0.00014335,2]
[338047387,1726253434468,-223.74368413,0.00014335,2]
[338047388,1726253434477,-150.0,0.00014338,2]
[338047389,1726253434488,-500.0,0.00014339,2]
[338047390,1726253434499,-500.0,0.00014348,2]
[338047391,1726253434509,-188.99378241,0.00014351,2]
[338047392,1726253434520,-223.74368413,0.00014351,2]
[338047393,1726253434530,-500.0,0.00014357,2]
[338047394,1726253434541,-500.0,0.00014365,2]
[338047395,1726253434552,-188.99378241,0.00014366,2]
[338047396,1726253434562,-223.74368413,0.00014366,2]
[338047397,1726253434572,-500.0,0.00014374,2]
[338047398,1726253434582,-150.0,0.00014379,2]
[338047399,1726253434593,-188.99378241,0.00014381,2]
[338047400,1726253434603,-223.74368413,0.00014381,2]
[338047401,1726253434613,-500.0,0.00014383,2]
[338047402,1726253434626,-355.07,0.00014384,2]
[338047403,1726253434636,-150.0,0.00014387,2]
[338047404,1726253434647,-500.0,0.00014392,2]
[338047405,1726253434658,-188.99378241,0.00014396,2]
[338047406,1726253434668,-223.74368413,0.00014396,2]
[338047407,1726253434678,-500.0,0.00014401,2]
[338047408,1726253434689,-500.0,0.00014409,2]
[338047409,1726253434698,-188.99378241,0.00014411,2]
[338047410,1726253434708,-223.74368413,0.00014411,2]
[338047411,1726253434718,-500.0,0.00014418,2]
[338047412,1726253434729,-150.0,0.00014419,2]
[338047413,1726253434739,-150.0,0.0001442,2]
[338047414,1726253434752,-188.99378241,0.00014426,2]
[338047415,1726253434764,-223.74368413,0.00014426,2]
[338047416,1726253434774,-500.0,0.00014427,2]
[338047417,1726253434784,-500.0,0.00014436,2]
[338047418,1726253434795,-188.99378241,0.00014441,2]
[338047419,1726253434806,-223.74368413,0.00014441,2]
[338047420,1726253434817,-500.0,0.00014452,2]
[338047421,1726253434830,-188.99378241,0.00014456,2]
[338047422,1726253434841,-223.74368413,0.00014456,2]
[338047423,1726253434851,-150.0,0.0001446,2]
[338047424,1726253434862,-188.99378241,0.00014472,2]
[338047425,1726253434874,-223.74368413,0.00014472,2]
[338047426,1726253434884,-188.99378241,0.00014487,2]
[338047427,1726253434894,-150.0,0.00014487,2]
[338047428,1726253434904,-223.74368413,0.00014487,2]
[338047429,1726253434915,-150.0,0.00014487,2]
[338047430,1726253434925,-150.0,0.00014487,2]
[338047431,1726253434934,-150.0,0.00014487,2]
[338047432,1726253434944,-150.0,0.000145,2]
[338047433,1726253434954,-188.99378241,0.00014502,2]
[338047434,1726253434964,-223.74368413,0.00014502,2]
[338047435,1726253434974,-188.99378241,0.00014517,2]
[338047436,1726253434983,-223.74368413,0.00014517,2]
[338047437,1726253434994,-1000.0,0.00014521,2]
[338047438,1726253435006,-1000.0,0.00014528,2]
[338047439,1726253435016,-398.845,0.00014531,2]
[338047440,1726253435026,-188.99378241,0.00014532,2]
[338047441,1726253435036,-223.74368413,0.00014532,2]
[338047442,1726253435047,-150.0,0.00014537,2]
[338047443,1726253435058,-150.0,0.00014541,2]
[338047444,1726253435069,-188.99378241,0.00014547,2]
[338047445,1726253435080,-223.74368413,0.00014547,2]
[338047446,1726253435090,-188.99378241,0.00014562,2]
[338047447,1726253435100,-223.74368413,0.00014562,2]
[338047448,1726253435111,-188.99378241,0.00014578,2]
[338047449,1726253435122,-223.74368413,0.00014578,2]
[338047450,1726253435133,-150.0,0.00014581,2]
[338047451,1726253435143,-167.0,0.00014582,2]
[338047452,1726253435153,-188.99378241,0.00014593,2]
[338047453,1726253435163,-223.74368413,0.00014593,2]
[338047454,1726253435172,-188.99378241,0.00014608,2]
[338047455,1726253435183,-223.74368413,0.00014608,2]
[338047456,1726253435193,-150.0,0.00014612,2]
[338047457,1726253435203,-150.0,0.00014622,2]
[338047458,1726253435214,-188.99378241,0.00014623,2]
[338047459,1726253435224,-223.74368413,0.00014623,2]
[338047460,1726253435234,-188.99378241,0.00014638,2]
[338047461,1726253435245,-223.74368413,0.00014638,2]
[338047462,1726253435255,-459.42819,0.0001465,2]
[338047463,1726253435265,-188.99378241,0.00014653,2]
[338047464,1726253435275,-223.74368413,0.00014653,2]
[338047465,1726253435285,-150.0,0.00014662,2]
[338047466,1726253435295,-188.99378241,0.00014668,2]
[338047467,1726253435304,-223.74368413,0.00014668,2]
[338047468,1726253435314,-542.6691,0.00014682,2]
[338047469,1726253435326,-188.99378241,0.00014684,2]
[338047470,1726253435335,-223.74368413,0.00014684,2]
[338047471,1726253435346,-44367.7594,0.00014684,2]
[338047472,1726253435356,-150.0,0.00014687,2]
[338047473,1726253435367,-9078.0109,0.00014694,2]
[338047474,1726253435377,-320.0212,0.00014694,2]
[338047475,1726253435387,-7500.0,0.00014694,2]
[338047476,1726253435397,-188.99378241,0.00014699,2]
[338047477,1726253435407,-223.74368413,0.00014699,2]
[338047478,1726253435418,-150.0,0.00014703,2]
[338047479,1726253435428,-188.99378241,0.00014714,2]
[338047480,1726253435644,-223.74368413,0.00014714,2]
[338047481,1726253435656,-188.99378241,0.00014729,2]
[338047482,1726253435667,-223.74368413,0.00014729,2]
[338047483,1726253435678,-150.0,0.00014737,2]
[338047484,1726253435688,-150.0,0.00014743,2]
[338047485,1726253435699,-188.99378241,0.00014744,2]
[338047486,1726253435709,-223.74368413,0.00014744,2]
[338047487,1726253435720,-188.99378241,0.00014759,2]
[338047488,1726253435730,-223.74368413,0.00014759,2]
[338047489,1726253435740,-42928.1114317,0.00014774,3]
[338047490,1726253435751,-188.99378241,0.00014774,2]
[338047491,1726253435765,-223.74368413,0.00014774,2]
[338047492,1726253435776,-4147.2917344,0.0001478,2]
[338047493,1726253435786,-150.0,0.0001478,2]
[338047494,1726253435797,-150.0,0.00014784,2]
[338047495,1726253435807,-17877.13958693,0.00014784,3]
[338047496,1726253435823,-289.8028466,0.00014784,3]
[338047497,1726253435839,-600.0,0.00014784,3]
[338047498,1726253435851,-5500.77126725,0.00014784,3]
[338047499,1726253435874,-151917.55827412,0.00014784,3]
[338047500,1726253435886,-6000.0,0.00014784,3]
[338047501,1726253435898,-3921.98682563,0.00014784,3]
[338047502,1726253435910,-2437.99633404,0.00014784,3]
[338047503,1726253435923,-23390.05705766,0.00014784,3]
[338047504,1726253435934,-2497.50370162,0.00014784,3]
[338047505,1726253435946,-207.74126415,0.00014784,3]
[338047506,1726253435955,-4492.25873585,0.00014784,3]
[338047507,1726253435969,-1181.26213134,0.00014784,3]
[338047508,1726253436005,282.65,0.00012568,2]
[338047509,1726253436018,-3603.53690901,0.00014784,3]
[338047513,1726253437783,-1083.44152584,0.00014784,3]
[338047514,1726253437799,-5340.98495427,0.00014784,3]
[338047515,1726253437811,-338.26352533,0.00014784,3]
[338047516,1726253437827,-7799.5223659,0.00014784,3]
[338047517,1726253437839,-6016.27157419,0.00014784,3]
[338047518,1726253437867,-6470.20833297,0.00014784,3]
[338047519,1726253438007,-40557.0577649,0.00014784,3]
[338047520,1726253438021,-2159.01370105,0.00014784,3]
[338047521,1726253438034,-599.619178,0.00014784,3]
[338047522,1726253438046,-324.0683217,0.00014784,3]
[338047523,1726253438059,-316.40974362,0.00014784,3]
[338047524,1726253438093,-462.45588772,0.00014784,3]
[338047525,1726253438104,-264.54053448,0.00014784,3]
[338047526,1726253438132,-7958.54185658,0.00014784,3]
[338047670,1726253439866,-517.05379565,0.00014784,3]
[338047672,1726253439878,-1341.45000002,0.00014784,3]
[338047674,1726253439890,-262.894995,0.00014784,3]
[338047676,1726253439902,-31000.0,0.00014784,3]
[338047688,1726253440024,-419.83121658,0.00014784,3]
[338047690,1726253440034,-439.6179434,0.00014787,2]
[338047692,1726253440044,-940.93706062,0.00014787,2]
[338047695,1726253440068,-244.30077078,0.00014787,2]
[338047697,1726253440079,-284.4033519,0.00014787,2]
[338047699,1726253440089,-370.40817662,0.00014788,3]
[338047701,1726253440101,-13938.96230058,0.00014788,3]
[338047703,1726253440111,-9423.74515767,0.00014788,3]
[338047705,1726253440121,-188.99378241,0.0001479,2]
[338047707,1726253440132,-223.74368413,0.0001479,2]
[338047709,1726253440142,-791.42576337,0.00014794,2]
[338047711,1726253440152,-74554.80033648,0.00014794,2]
[338047713,1726253440163,-3676.48,0.00014794,2]
[338047715,1726253440174,-151.0,0.00014794,2]
[338047717,1726253440184,-151.0,0.00014794,2]
[338047719,1726253440195,-151.0,0.00014794,2]
[338047721,1726253440205,-227.00292,0.00014794,2]
[338047723,1726253440215,-158.668844,0.00014794,2]
[338047725,1726253440226,-158.668844,0.00014794,2]
[338047727,1726253440237,-158.668844,0.00014794,2]
[338047729,1726253440247,-158.668844,0.00014794,2]
[338047731,1726253440258,-8500.0,0.00014794,2]
[338047733,1726253440268,-500.0,0.00014794,2]
[338047735,1726253440277,-589.60663223,0.00014794,2]
[338047737,1726253440287,-636.11561904,0.00014794,2]
[338047739,1726253440297,-500.0,0.00014794,2]
[338047741,1726253440307,-500.0,0.00014794,2]
[338047743,1726253440316,-500.0,0.00014794,2]
[338047745,1726253440326,-500.0,0.00014794,2]
[338047747,1726253440336,-500.0,0.00014794,2]
[338047749,1726253440346,-500.0,0.00014794,2]
[338047751,1726253440358,-500.0,0.00014794,2]
[338047753,1726253440368,-350.63315504,0.00014794,2]
[338047755,1726253440380,-1322.0,0.00014794,2]
[338047757,1726253440390,-1322.0,0.00014794,2]
[338047759,1726253440401,-1322.0,0.00014794,2]
[338047761,1726253440411,-1322.0,0.00014794,2]
[338047763,1726253440421,-1322.0,0.00014794,2]
[338047765,1726253440431,-1322.0,0.00014794,2]
[338047767,1726253440441,-1322.0,0.00014794,2]
[338047769,1726253440451,-1322.0,0.00014794,2]
[338047771,1726253440461,-1322.0,0.00014794,2]
[338047773,1726253440471,-1322.0,0.00014794,2]
[338047775,1726253440480,-1322.0,0.00014794,2]
[338047777,1726253440490,-1322.0,0.00014794,2]
[338047779,1726253440500,-1322.0,0.00014794,2]
[338047781,1726253440510,-1322.0,0.00014794,2]
[338047783,1726253440520,-1322.0,0.00014794,2]
[338047785,1726253440530,-1322.0,0.00014794,2]
[338047787,1726253440540,-1322.0,0.00014794,2]
[338047789,1726253440550,-1322.0,0.00014794,2]
[338047791,1726253440560,-1322.0,0.00014794,2]
[338047793,1726253440571,-1322.0,0.00014794,2]
[338047795,1726253440581,-1322.0,0.00014794,2]
[338047797,1726253440591,-1322.0,0.00014794,2]
[338047799,1726253440601,-1322.0,0.00014794,2]
[338047801,1726253440611,-1322.117666,0.00014794,2]
[338047803,1726253440621,-500.0,0.00014794,2]
[338047805,1726253440635,-500.0,0.00014794,2]
[338047807,1726253440646,-500.0,0.00014794,2]
[338047809,1726253440656,-500.0,0.00014794,2]
[338047811,1726253440666,-500.0,0.00014794,2]
[338047813,1726253440676,-500.0,0.00014794,2]
[338047815,1726253440687,-500.0,0.00014794,2]
[338047818,1726253440697,-500.0,0.00014794,2]
[338047820,1726253440708,-500.0,0.00014794,2]
[338047822,1726253440718,-500.0,0.00014794,2]
[338047824,1726253440728,-500.0,0.00014794,2]
[338047826,1726253440739,-500.0,0.00014794,2]
[338047828,1726253440749,-500.0,0.00014794,2]
[338047830,1726253440763,-500.0,0.00014794,2]
[338047832,1726253440774,-500.34370695,0.00014794,2]
[338047834,1726253440784,-500.0,0.00014794,2]
[338047836,1726253440794,-500.0,0.00014794,2]
[338047838,1726253440806,-500.0,0.00014794,2]
[338047840,1726253440816,-500.0,0.00014794,2]
[338047842,1726253440827,-500.0,0.00014794,2]
[338047844,1726253440837,-500.0,0.00014794,2]
[338047846,1726253440848,-500.0,0.00014794,2]
[338047848,1726253440862,-500.0,0.00014794,2]
[338047850,1726253440873,-310.5791199,0.00014794,2]
[338047852,1726253440885,-169.88167508,0.00014794,2]